fUSD/lending_fUSD_20250522
["ID","MTS","AMOUNT","RATE_DAILY","PERIOD"]
[362000988,1747931455755,-420.0,0.00033424,5]
[362000989,1747931455765,-420.0,0.00033424,5]
[362000990,1747931455774,-797.69,0.00033424,5]
[362000991,1747931455784,-420.0,0.00033424,5]
[362000992,1747931455793,-420.0,0.00033424,5]
[362000993,1747931455804,-726.12,0.00033424,5]
[362000994,1747931455813,-579.81,0.00033424,5]
[362000995,1747931455826,-420.0,0.00033424,5]
[362000996,1747931455835,-552.0,0.00033424,5]
[362000997,1747931455845,-518.61,0.00033424,5]
[362000998,1747931455854,-420.0,0.00033424,5]
[362000999,1747931455864,-446.4,0.00033424,5]
[362001000,1747931455873,-679.14,0.00033424,5]
[362001001,1747931455884,-420.0,0.00033424,5]
[362001002,1747931455895,-478.85,0.00033424,5]
[362001003,1747931455904,-431.98,0.00033424,5]
[362001004,1747931455913,-545.57,0.00033424,5]
[362001005,1747931455922,-420.0,0.00033424,5]
[362001006,1747931455932,-420.0,0.00033424,5]
[362001007,1747931455941,-420.0,0.00033424,5]
[362001008,1747931455950,-420.0,0.00033424,5]
[362001009,1747931455961,-420.0,0.00033424,5]
[362001010,1747931455971,-498.22,0.00033424,5]
[362001011,1747931455980,-420.0,0.00033424,5]
[362001012,1747931455990,-555.87,0.00033424,5]
[362001013,1747931455999,-420.0,0.00033424,5]
[362001014,1747931456009,-656.16,0.00033424,5]
[362001015,1747931456020,-467.27,0.00033424,5]
[362001016,1747931456030,-420.0,0.00033424,5]
[362001017,1747931456040,-449.64,0.00033424,5]
[362001018,1747931456050,-420.0,0.00033424,5]
[362001019,1747931456060,-468.07,0.00033424,5]
[362001020,1747931456074,-456.63,0.00033424,5]
[362001021,1747931456083,-420.0,0.00033424,5]
[362001022,1747931456092,-420.0,0.00033424,5]
[362001023,1747931456102,-420.0,0.00033424,5]
[362001024,1747931456111,-420.0,0.00033424,5]
[362001025,1747931456120,-420.0,0.00033424,5]
[362001026,1747931456130,-420.0,0.00033424,5]
[362001027,1747931456139,-420.0,0.00033424,5]
[362001028,1747931456148,-501.22,0.00033424,5]
[362001029,1747931456158,-420.0,0.00033424,5]
[362001030,1747931456168,-420.0,0.00033424,5]
[362001031,1747931456177,-420.0,0.00033424,5]
[362001032,1747931456187,-420.0,0.00033424,5]
[362001033,1747931456197,-420.0,0.00033424,5]
[362001034,1747931456206,-440.44,0.00033424,5]
[362001035,1747931456215,-630.08,0.00033424,5]
[362001036,1747931456226,-454.72,0.00033424,5]
[362001037,1747931456235,-535.45216882,0.00033424,5]
[362001038,1747931456245,-420.0,0.00033424,5]
[362001039,1747931456256,-420.0,0.00033424,5]
[362001040,1747931456265,-435.01,0.00033424,5]
[362001041,1747931456277,-420.0,0.00033424,5]
[362001042,1747931456286,-420.0,0.00033424,5]
[362001043,1747931456295,-1125.98,0.00033424,5]
[362001044,1747931456305,-420.0,0.00033424,5]
[362001045,1747931456314,-420.0,0.00033424,5]
[362001046,1747931456327,-420.0,0.00033424,5]
[362001047,1747931456337,-530.85,0.00033424,5]
[362001048,1747931456346,-420.0,0.00033424,5]
[362001049,1747931456356,-420.0,0.00033424,5]
[362001050,1747931456365,-420.0,0.00033424,5]
[362001051,1747931456374,-633.44,0.00033424,5]
[362001052,1747931456383,-480.0,0.00033424,5]
[362001053,1747931456392,-470.67,0.00033424,5]
[362001054,1747931456402,-420.0,0.00033424,5]
[362001055,1747931456411,-1601.82,0.00033424,5]
[362001056,1747931456420,-420.0,0.00033424,5]
[362001057,1747931456429,-420.0,0.00033424,5]
[362001058,1747931456438,-810.48,0.00033424,5]
[362001059,1747931456448,-588.28,0.00033424,5]
[362001060,1747931456458,-863.06,0.00033424,5]
[362001061,1747931456467,-420.0,0.00033424,5]
[362001062,1747931456476,-420.0,0.00033424,5]
[362001063,1747931456486,-462.28,0.00033424,5]
[362001064,1747931456495,-420.0,0.00033424,5]
[362001065,1747931456505,-481.97,0.00033424,5]
[362001066,1747931456515,-420.0,0.00033424,5]
[362001067,1747931456524,-420.0,0.00033424,5]
[362001068,1747931456533,-420.0,0.00033424,5]
[362001069,1747931456542,-420.0,0.00033424,5]
[362001070,1747931456551,-420.0,0.00033424,5]
[362001071,1747931456560,-420.0,0.00033424,5]
[362001072,1747931456571,-420.0,0.00033424,5]
[362001073,1747931456582,-245.89048631,0.00033424,5]
[362001074,1747931456592,-785.58,0.00033424,5]
[362001075,1747931456602,-420.0,0.00033424,5]
[362001076,1747931456611,-550.3,0.00033424,5]
[362001077,1747931456621,-565.32,0.00033424,5]
[362001078,1747931456630,-420.0,0.00033424,5]
[362001079,1747931456639,-640.47,0.00033424,5]
[362001080,1747931456648,-449.81,0.00033424,5]
[362001081,1747931456658,-420.0,0.00033424,5]
[362001082,1747931456668,-447.23,0.00033424,5]
[362001083,1747931456677,-420.0,0.00033424,5]
[362001084,1747931456686,-609.23,0.00033424,5]
[362001085,1747931456696,-420.0,0.00033424,5]
[362001086,1747931456705,-472.73,0.00033424,5]
[362001087,1747931456714,-494.96,0.00033424,5]
[362001088,1747931456724,-536.24,0.00033424,5]
[362001089,1747931456733,-420.0,0.00033424,5]
[362001090,1747931456742,-420.0,0.00033424,5]
[362001091,1747931456751,-605.07,0.00033424,5]
[362001092,1747931456762,-420.0,0.00033424,5]
[362001093,1747931456771,-659.26,0.00033424,5]
[362001094,1747931456781,-1998.57,0.00033424,5]
[362001095,1747931456791,-420.0,0.00033424,5]
[362001096,1747931456800,-497.76,0.00033424,5]
[362001097,1747931456810,-562.39341465,0.00033424,5]
[362001098,1747931456819,-789.31,0.00033424,5]
[362001099,1747931456832,-161.93750696,0.00033424,5]
[362001100,1747931456842,-420.0,0.00033424,5]
[362001101,1747931456852,-420.0,0.00033424,5]
[362001102,1747931456861,-420.0,0.00033424,5]
[362001103,1747931456871,-420.0,0.00033424,5]
[362001104,1747931456883,-420.0,0.00033424,5]
[362001105,1747931456897,-420.0,0.00033424,5]
[362001106,1747931456906,-694.62,0.00033424,5]
[362001107,1747931456916,-473.05,0.00033424,5]
[362001108,1747931456925,-946.75,0.00033424,5]
[362001109,1747931456938,-426.15,0.00033424,5]
[362001110,1747931456948,-420.0,0.00033424,5]
[362001111,1747931456957,-332.58713446,0.00033424,5]
[362001112,1747931456968,-420.0,0.00033424,5]
[362001113,1747931456977,-479.62,0.00033424,5]
[362001114,1747931456986,-809.66,0.00033424,5]
[362001115,1747931456995,-420.0,0.00033424,5]
[362001116,1747931457005,-420.0,0.00033424,5]
[362001117,1747931457014,-420.0,0.00033424,5]
[362001118,1747931457024,-632.27,0.00033424,5]
[362001119,1747931457035,-420.0,0.00033424,5]
[362001120,1747931457044,-420.0,0.00033424,5]
[362001121,1747931457054,-420.0,0.00033424,5]
[362001122,1747931457063,-420.0,0.00033424,5]
[362001123,1747931457076,-806.37,0.00033424,5]
[362001124,1747931457085,-420.0,0.00033424,5]
[362001125,1747931457095,-420.0,0.00033424,5]
[362001126,1747931457104,-420.0,0.00033424,5]
[362001127,1747931457114,-529.91,0.00033424,5]
[362001128,1747931457122,-1121.59,0.00033424,5]
[362001129,1747931457132,-752.99,0.00033424,5]
[362001130,1747931457142,-794.84,0.00033424,5]
[362001131,1747931457151,-420.0,0.00033424,5]
[362001132,1747931457161,-420.0,0.00033424,5]
[362001133,1747931457170,-420.0,0.00033424,5]
[362001134,1747931457180,-420.0,0.00033424,5]
[362001135,1747931457190,-420.0,0.00033424,5]
[362001136,1747931457199,-420.0,0.00033424,5]
[362001137,1747931457209,-712.77,0.00033424,5]
[362001138,1747931457221,-762.56,0.00033424,5]
[362001139,1747931457230,-420.0,0.00033424,5]
[362001140,1747931457240,-420.0,0.00033424,5]
[362001141,1747931457249,-420.0,0.00033424,5]
[362001142,1747931457258,-420.0,0.00033424,5]
[362001143,1747931457268,-420.0,0.00033424,5]
[362001144,1747931457279,-420.0,0.00033424,5]
[362001145,1747931457289,-21745.64,0.00033424,5]
[362001146,1747931457298,-420.0,0.00033424,5]
[362001147,1747931457308,-420.0,0.00033424,5]
[362001148,1747931457318,-596.79,0.00033424,5]
[362001149,1747931457333,-420.0,0.00033424,5]
[362001150,1747931457342,-420.0,0.00033424,5]
[362001151,1747931457351,-1037.2,0.00033424,5]
[362001152,1747931457361,-457.86743478,0.00033424,5]
[362001153,1747931457370,-420.0,0.00033424,5]
[362001154,1747931457379,-420.0,0.00033424,5]
[362001155,1747931457388,-420.0,0.00033424,5]
[362001156,1747931457398,-1555.15,0.00033424,5]
[362001157,1747931457407,-606.3,0.00033424,5]
[362001158,1747931457416,-546.96,0.00033424,5]
[362001159,1747931457424,-420.0,0.00033424,5]
[362001160,1747931457434,-420.0,0.00033424,5]
[362001161,1747931457443,-1289.19,0.00033424,5]
[362001162,1747931457452,-552.58,0.00033424,5]
[362001163,1747931457461,-6483.5,0.00033424,5]
[362001164,1747931457471,-605.77,0.00033424,5]
[362001165,1747931457479,-5256.49,0.00033424,5]
[362001166,1747931457488,-463.29,0.00033424,5]
[362001167,1747931457497,-420.0,0.00033424,5]
[362001168,1747931457507,-662.69,0.00033424,5]
[362001169,1747931457516,-740.11,0.00033424,5]
[362001170,1747931457525,-420.0,0.00033424,5]
[362001171,1747931457534,-635.28,0.00033424,5]
[362001172,1747931457543,-2289.19,0.00033424,5]
[362001173,1747931457552,-420.0,0.00033424,5]
[362001174,1747931457561,-420.0,0.00033424,5]
[362001175,1747931457570,-420.0,0.00033424,5]
[362001176,1747931457582,-737.66,0.00033424,5]
[362001177,1747931457591,-496.29,0.00033424,5]
[362001178,1747931457600,-420.0,0.00033424,5]
[362001179,1747931457609,-2025.73,0.00033424,5]
[362001180,1747931457618,-420.0,0.00033424,5]
[362001181,1747931457627,-505.78,0.00033424,5]
[362001182,1747931457636,-420.0,0.00033424,5]
[362001183,1747931457645,-420.0,0.00033424,5]
[362001184,1747931457654,-3803.22,0.00033424,5]
[362001185,1747931457663,-587.96,0.00033424,5]
[362001186,1747931457672,-1780.67,0.00033424,5]
[362001187,1747931457682,-420.0,0.00033424,5]
[362001188,1747931457691,-688.2,0.00033424,5]
[362001189,1747931457700,-420.0,0.00033424,5]
[362001190,1747931457715,-420.0,0.00033424,5]
[362001191,1747931457726,-999.56,0.00033424,5]
[362001192,1747931457735,-516.84,0.00033424,5]
[362001193,1747931457744,-1296.98,0.00033424,5]
[362001194,1747931457753,-420.0,0.00033424,5]
[362001195,1747931457763,-628.79,0.00033424,5]
[362001196,1747931457772,-1056.71,0.00033424,5]
[362001197,1747931457781,-420.0,0.00033424,5]
[362001198,1747931457791,-475.18,0.00033424,5]
[362001199,1747931457800,-420.0,0.00033424,5]
[362001200,1747931457809,-502.41,0.00033424,5]
[362001201,1747931457819,-420.0,0.00033424,5]
[362001202,1747931457832,-420.0,0.00033424,5]
[362001203,1747931457842,-573.31,0.00033424,5]
[362001204,1747931457851,-687.88,0.00033424,5]
[362001205,1747931457861,-420.0,0.00033424,5]
[362001206,1747931457878,-857.16,0.00033424,5]
[362001207,1747931457889,-420.0,0.00033424,5]
[362001208,1747931457901,-753.03,0.00033424,5]
[362001209,1747931457910,-735.59843528,0.00033424,5]
[362001210,1747931458374,-311.184893,0.00033424,5]
[362001211,1747931458878,-279.464,0.00031081,2]
[362001212,1747931458892,-179.86135854,0.00033414,2]
[362001213,1747931458902,-634.87667172,0.00033424,5]
[362001214,1747931458912,-420.0,0.00033424,5]
[362001215,1747931458923,-497.2,0.00033424,5]
[362001216,1747931458934,-420.0,0.00033424,5]
[362001217,1747931458945,-420.0,0.00033424,5]
[362001218,1747931458955,-742.17,0.00033424,5]
[362001219,1747931458966,-578.47,0.00033424,5]
[362001220,1747931458976,-491.02,0.00033424,5]
[362001221,1747931458985,-905.74,0.00033424,5]
[362001222,1747931458995,-420.0,0.00033424,5]
[362001223,1747931459004,-420.0,0.00033424,5]
[362001224,1747931459014,-2624.74,0.00033424,5]
[362001225,1747931459023,-420.0,0.00033424,5]
[362001226,1747931459033,-1060.1,0.00033424,5]
[362001227,1747931459042,-420.0,0.00033424,5]
[362001228,1747931459052,-420.0,0.00033424,5]
[362001229,1747931459062,-1107.43,0.00033424,5]
[362001230,1747931459071,-806.38,0.00033424,5]
[362001231,1747931459088,-814.15,0.00033424,5]
[362001232,1747931459097,-420.0,0.00033424,5]
[362001233,1747931459107,-920.55,0.00033424,5]
[362001234,1747931459117,-424.94,0.00033424,5]
[362001235,1747931459127,-726.83,0.00033424,5]
[362001236,1747931459136,-266.49394868,0.00033424,5]
[362001237,1747931459145,-1184.97,0.00033424,5]
[362001238,1747931459155,-811.99,0.00033424,5]
[362001239,1747931459164,-1585.1,0.00033424,2]
[362001240,1747931459174,-420.0,0.00033424,5]
[362001241,1747931459183,-420.0,0.00033424,5]
[362001242,1747931459193,-501.89,0.00033424,5]
[362001243,1747931459203,-976.09,0.00033424,5]
[362001244,1747931459213,-420.0,0.00033424,5]
[362001245,1747931459222,-420.0,0.00033424,5]
[362001246,1747931459232,-420.0,0.00033424,5]
[362001247,1747931459242,-1205.54,0.00033424,5]
[362001248,1747931459252,-496.53,0.00033424,5]
[362001249,1747931459262,-420.0,0.00033424,5]
[362001250,1747931459272,-702.85,0.00033424,5]
[362001251,1747931459281,-420.0,0.00033424,5]
[362001252,1747931459291,-420.0,0.00033424,5]
[362001253,1747931459301,-300.47428918,0.00033424,5]
[362001254,1747931459385,-119.52571082,0.00033424,5]
[362001255,1747931459395,-975.31,0.00033424,5]
[362001256,1747931459404,-874.16,0.00033424,5]
[362001257,1747931459414,-420.0,0.00033424,5]
[362001258,1747931459423,-1050.04,0.00033424,5]
[362001259,1747931459432,-932.06124516,0.00033424,5]
[362001260,1747931460015,-420.0,0.00032876,5]
[362001261,1747931460025,-420.0,0.0003315,5]
[362001262,1747931460034,-124.77875484,0.00033424,5]
[362001263,1747931460044,-213.478253,0.00033424,5]
[362001264,1747931460056,-2985.581747,0.00033424,5]
[362001265,1747931460066,-696.47,0.00033424,5]
[362001266,1747931460080,-140.47521006,0.00033424,5]
[362001267,1747931460125,-1.05620922,0.00033424,5]
[362001268,1747931460582,-628.99,0.00032876,5]
[362001269,1747931460592,-436.49857331,0.0003305,6]
[362001270,1747931460602,-628.99,0.0003315,5]
[362001271,1747931460611,-681.95858072,0.00033424,5]
[362001272,1747931460621,-420.0,0.00033424,5]
[362001273,1747931460630,-1070.32,0.00033424,5]
[362001274,1747931460639,-1043.66,0.00033424,5]
[362001275,1747931460648,-420.0,0.00033424,5]
[362001276,1747931460657,-619.44,0.00033424,5]
[362001277,1747931460667,-420.0,0.00033424,5]
[362001278,1747931460676,-420.0,0.00033424,5]
[362001279,1747931460685,-571.58,0.00033424,5]
[362001280,1747931460695,-420.0,0.00033424,5]
[362001281,1747931460704,-199.87028333,0.00033424,5]
[362001282,1747931460713,-420.0,0.00033424,5]
[362001283,1747931460722,-420.0,0.00033424,5]
[362001284,1747931460732,-713.84,0.00033424,5]
[362001285,1747931460741,-922.04,0.00033424,5]
[362001286,1747931460750,-7568.19,0.00033424,2]
[362001287,1747931460760,-4056.98,0.00033424,5]
[362001288,1747931460770,-571.81,0.00033424,5]
[362001289,1747931460781,-508.04,0.00033424,5]
[362001290,1747931460791,-736.06,0.00033424,5]
[362001291,1747931460800,-595.56,0.00033424,5]
[362001292,1747931460810,-1053.94,0.00033424,5]
[362001293,1747931460819,-420.0,0.00033424,5]
[362001294,1747931460836,-885.36,0.00033424,5]
[362001295,1747931461176,-420.0,0.00033424,5]
[362001296,1747931461196,-420.0,0.00033424,5]
[362001297,1747931461207,-420.0,0.00033424,5]
[362001298,1747931461216,-599.32,0.00033424,5]
[362001299,1747931461226,-1631.92,0.00033424,5]
[362001300,1747931461235,-3108.09,0.00033424,5]
[362001301,1747931461245,-765.45,0.00033424,5]
[362001302,1747931461255,-420.0,0.00033424,5]
[362001303,1747931461264,-420.0,0.00033424,5]
[362001304,1747931461274,-420.0,0.00033424,5]
[362001305,1747931461284,-469.99,0.00033424,5]
[362001306,1747931461294,-10294.5,0.00033424,5]
[362001307,1747931461303,-420.0,0.00033424,5]
[362001308,1747931461313,-420.0,0.00033424,5]
[362001309,1747931461323,-444.9,0.00033424,5]
[362001310,1747931461336,-576.31,0.00033424,5]
[362001311,1747931461346,-737.94,0.00033424,5]
[362001312,1747931461356,-527.64,0.00033424,5]
[362001313,1747931461365,-771.94,0.00033424,5]
[362001314,1747931461375,-910.63,0.00033424,5]
[362001315,1747931461385,-854.71,0.00033424,5]
[362001316,1747931461394,-730.92,0.00033424,5]
[362001317,1747931461405,-420.0,0.00033424,5]
[362001318,1747931461414,-420.0,0.00033424,5]
[362001319,1747931461424,-420.0,0.00033424,5]
[362001320,1747931461433,-699.27,0.00033424,5]
[362001321,1747931461443,-420.0,0.00033424,5]
[362001322,1747931461452,-420.0,0.00033424,5]
[362001323,1747931461462,-420.0,0.00033424,5]
[362001324,1747931461471,-420.0,0.00033424,5]
[362001325,1747931461481,-1059.24,0.00033424,5]
[362001326,1747931461490,-420.0,0.00033424,5]
[362001327,1747931461500,-600.36,0.00033424,5]
[362001328,1747931461510,-2359.56,0.00033424,5]
[362001329,1747931461520,-713.12,0.00033424,5]
[362001330,1747931461530,-420.0,0.00033424,5]
[362001331,1747931461539,-420.0,0.00033424,5]
[362001332,1747931461549,-420.0,0.00033424,5]
[362001333,1747931461558,-240.47624633,0.00033424,5]
[362001334,1747931461568,-420.0,0.00033424,5]
[362001335,1747931461582,-628.99,0.00033424,5]
[362001336,1747931461591,-843.84191387,0.00033477,2]
[362001337,1747931461601,-300.0,0.00033479,2]
[362001338,1747931461611,-7245.12264966,0.00033484,2]
[362001339,1747931461620,-1000.0,0.000335,2]
[362001340,1747931461630,-201.21314462,0.00033592,29]
[362001341,1747931461641,-1000.0,0.000336,2]
[362001342,1747931461651,-150.0,0.00033615,2]
[362001343,1747931461661,-2466.29324,0.0003363,2]
[362001344,1747931461671,-12345.3995513,0.00033691,2]
[362001345,1747931461681,-633.63,0.00033697,5]
[362001346,1747931461692,-633.63,0.00033697,5]
[362001347,1747931461702,-980.2993,0.00033697,2]
[362001348,1747931461712,-49256.434267,0.00033697,2]
[362001349,1747931461722,-5436.4747557,0.00033697,2]
[362001350,1747931461732,-152.959474,0.00033698,5]
[362001351,1747931461743,-150.657276,0.00033698,5]
[362001352,1747931461753,-420.0,0.00033698,5]
[362001353,1747931461764,-574.32,0.00033698,5]
[362001354,1747931461774,-441.89,0.00033698,5]
[362001355,1747931461785,-420.0,0.00033698,5]
[362001356,1747931461795,-420.0,0.00033698,5]
[362001357,1747931461805,-510.38,0.00033698,5]
[362001358,1747931461815,-420.0,0.00033698,5]
[362001359,1747931461827,-420.0,0.00033698,5]
[362001360,1747931461838,-420.0,0.00033698,5]
[362001361,1747931461848,-458.21,0.00033698,5]
[362001362,1747931461858,-420.0,0.00033698,5]
[362001363,1747931461870,-420.0,0.00033698,5]
[362001364,1747931461880,-499.49424452,0.00033698,5]
[362001365,1747931461892,-420.0,0.00033698,5]
[362001366,1747931461907,-571.52,0.00033698,5]
[362001367,1747931461917,-218.81143189,0.00033698,5]
[362001368,1747931461927,-420.0,0.00033698,5]
[362001369,1747931461939,-420.0,0.00033698,5]
[362001370,1747931461949,-585.25,0.00033698,5]
[362001371,1747931461959,-420.0,0.00033698,5]
[362001372,1747931461969,-420.0,0.00033698,5]
[362001373,1747931461981,-420.0,0.00033698,5]
[362001374,1747931461991,-420.0,0.00033698,5]
[362001375,1747931462001,-420.0,0.00033698,5]
[362001376,1747931462011,-420.0,0.00033698,5]
[362001377,1747931462021,-517.26,0.00033698,5]
[362001378,1747931462031,-420.0,0.00033698,5]
[362001379,1747931462041,-420.0,0.00033698,5]
[362001380,1747931462050,-619.68,0.00033698,5]
[362001381,1747931462060,-419.02193274,0.00033698,5]
[362001382,1747931462070,-420.0,0.00033698,5]
[362001383,1747931462082,-420.0,0.00033698,5]
[362001384,1747931462092,-420.0,0.00033698,5]
[362001385,1747931462102,-398.37079016,0.00033698,5]
[362001386,1747931462112,-420.0,0.00033698,5]
[362001387,1747931462122,-478.76,0.00033698,5]
[362001388,1747931462133,-420.0,0.00033698,5]
[362001389,1747931462143,-420.0,0.00033698,5]
[362001390,1747931462152,-257.76979683,0.00033698,5]
[362001391,1747931462162,-420.0,0.00033698,5]
[362001392,1747931462172,-338.16,0.00033698,5]
[362001393,1747931462182,-574.65,0.00033698,5]
[362001394,1747931462192,-420.0,0.00033698,5]
[362001395,1747931462202,-643.55,0.00033698,5]
[362001396,1747931462211,-481.48,0.00033698,5]
[362001397,1747931462221,-420.0,0.00033698,5]
[362001398,1747931462231,-420.0,0.00033698,5]
[362001399,1747931462241,-517.5,0.00033698,5]
[362001400,1747931462251,-420.0,0.00033698,5]
[362001401,1747931462261,-426.67,0.00033698,5]
[362001402,1747931462271,-420.0,0.00033698,5]
[362001403,1747931462280,-699.94,0.00033698,5]
[362001404,1747931462289,-465.55,0.00033698,5]
[362001405,1747931462298,-420.0,0.00033698,5]
[362001406,1747931462308,-420.0,0.00033698,5]
[362001407,1747931462318,-420.0,0.00033698,5]
[362001408,1747931462330,-420.0,0.00033698,5]
[362001409,1747931462340,-420.0,0.00033698,5]
[362001410,1747931462350,-394.99671639,0.00033698,5]
[362001411,1747931462418,-25.00328361,0.00033698,5]
[362001412,1747931462428,-45.3338158,0.00033698,5]
[362001414,1747931612501,-288.95,0.00013699,2]
[362001415,1747931612530,-200.0,0.00015068,2]
[362001416,1747931612557,-250.0,0.00015068,2]
[362001417,1747931612854,-200.0,0.00016943,2]
[362001418,1747931642334,200.0,0.00022206,117]
[362001419,1747931678580,150.0,0.0002,2]
[362001420,1747931764616,44988.00438368,0.0002,2]
[362001421,1747931820100,7182.45798899,0.0002,2]
[362001430,1747932334104,-288.95,0.00020187,2]
[362001431,1747932334126,-200.0,0.00022206,2]
[362001432,1747932334146,-200.0,0.000251,2]
[362001433,1747932334167,-12.40118075,0.00026676,2]
[362001434,1747932341081,-276.54881925,0.00026676,2]
[362001435,1747932341103,-200.0,0.00028,120]
[362001436,1747932341126,-929.02793793,0.00029998,2]
[362001437,1747932453130,-158.138233,0.00029848,2]
[362001438,1747932453157,-270.97206207,0.00029998,2]
[362001439,1747932453182,-150.0,0.00029999,2]
[362001440,1747932453207,-262.0,0.00029999,2]
[362001441,1747932453235,-300.0,0.00029999,2]
[362001442,1747932453265,-163.19961815,0.00029999,30]
[362001455,1747932631791,-459.7108521,0.00029998,2]
[362001456,1747932631845,-461.2891479,0.00029998,2]
[362001457,1747932631855,-300.0,0.00029998,2]
[362001458,1747932631864,-4911.90562076,0.00029999,2]
[362001459,1747932631876,-4231.55823867,0.00029999,2]
[362001460,1747932631886,-1000.0,0.0003,120]
[362001461,1747932631895,-39.84176132,0.0003,120]
[362001462,1747932631907,-960.15823868,0.0003,120]
[362001463,1747932631918,-974.88088254,0.0003,120]
[362001464,1747932631950,-25.11911746,0.0003,120]
[362001465,1747932631959,-493.11154632,0.0003,120]
[362001952,1747932637574,-506.88845368,0.0003,120]
[362001954,1747932637584,-450.84362342,0.0003,120]
[362001960,1747932637642,-549.15637658,0.0003,120]
[362001961,1747932637653,-627.94096696,0.0003,120]
[362001962,1747932637665,-372.05903304,0.0003,120]
[362001963,1747932637677,-1000.0,0.0003,120]
[362001964,1747932637687,-936.34503843,0.0003,120]
[362001965,1747932637696,-250.0,0.0003,120]
[362001966,1747932637706,-151.79,0.0003,2]
[362001967,1747932637715,-732.75,0.00030489,2]
[362001968,1747932637724,-300.61,0.00031,2]
[362001969,1747932637734,-1000.0,0.00031074,2]
[362001970,1747932637743,-177.97,0.00031338,120]
[362001971,1747932637753,-192.21,0.00031338,2]
[362001972,1747932637763,-200.0,0.00031349,2]
[362001973,1747932637772,-155.25,0.00031352,2]
[362001974,1747932637781,-155.25,0.00031364,2]
[362001975,1747932637791,-155.25,0.00031376,2]
[362001976,1747932637801,-155.25,0.00031388,2]
[362001977,1747932637812,-155.25,0.000314,2]
[362001978,1747932637821,-155.25,0.00031412,2]
[362001979,1747932637831,-155.25,0.00031424,2]
[362001980,1747932637840,-155.25,0.00031436,2]
[362001982,1747932637850,-155.25,0.00031448,2]
[362001983,1747932637859,-155.25,0.0003146,2]
[362001985,1747932637868,-155.25,0.00031472,2]
[362001987,1747932637878,-155.25,0.00031484,2]
[362001989,1747932637889,-250.0,0.00031493,2]
[362001991,1747932637898,-155.25,0.00031496,2]
[362001993,1747932637907,-155.25,0.00031508,2]
[362001995,1747932637917,-290.37,0.0003153,2]
[362001997,1747932637926,-207.4,0.00031571,2]
[362001999,1747932637935,-152.27,0.0003159,2]
[362002001,1747932637944,-5819.7,0.0003159,2]
[362002002,1747932637954,-200.0,0.00031672,2]
[362002004,1747932637964,-152.25,0.00031707,2]
[362002006,1747932637974,-1786.36,0.00031735,2]
[362002008,1747932637984,-1000.0,0.00032,120]
[362002010,1747932637994,-250.0,0.00032,120]
[362002012,1747932638004,-150.0,0.00032055,2]
[362002014,1747932638014,-300.0,0.00032055,2]
[362002016,1747932638023,-167.71,0.00032256,2]
[362002018,1747932638033,-420.0,0.00032331,2]